bitfinex/quotes_BTCUSD_20251027
["timestamp","ask_amount","ask_price","bid_price","bid_amount"]
[1761573027339,0.0002,115010.0,115000.0,1.19661205]
[1761573027558,0.00164958,115010.0,115000.0,1.19661205]
[1761573028030,0.00179563,115010.0,115000.0,1.19661205]
[1761573028253,0.00179563,115010.0,115000.0,1.88132733]
[1761573028497,0.00179563,115010.0,115000.0,1.91750961]
[1761573028717,0.00179563,115010.0,115000.0,1.92050961]
[1761573029606,0.00179563,115010.0,115000.0,1.02711433]
[1761573029823,0.00179563,115010.0,115000.0,1.71182961]
[1761573030250,0.00179563,115010.0,115000.0,0.64291433]
[1761573030466,0.00179563,115010.0,115000.0,0.81705205]
[1761573030678,0.00179563,115010.0,115000.0,0.85323433]
[1761573030894,0.00179563,115010.0,115000.0,1.53894961]
[1761573031108,0.00179563,115010.0,115000.0,1.53594961]
[1761573031548,0.00179563,115010.0,115000.0,1.54394961]
[1761573031804,0.00179563,115010.0,115000.0,1.48830961]
[1761573031997,0.00179563,115010.0,115000.0,0.79459433]
[1761573032216,0.00179563,115010.0,115000.0,0.79859433]
[1761573032433,0.00179563,115010.0,115000.0,0.80714622]
[1761573032651,0.00179563,115010.0,115000.0,1.4878615]
[1761573032868,0.00179563,115010.0,115000.0,1.47930961]
[1761573033130,0.00179563,115010.0,115000.0,1.48830961]
[1761573033791,0.00179563,115010.0,115000.0,0.80459433]
[1761573034220,0.00179563,115010.0,115000.0,1.48938961]
[1761573034472,0.00179563,115010.0,115000.0,1.47938961]
[1761573034686,0.00179563,115010.0,115000.0,1.48238961]
[1761573035135,0.00179563,115010.0,115000.0,2.01086961]
[1761573035798,0.00179563,115010.0,115000.0,1.38184733]
[1761573036027,0.00179563,115010.0,115000.0,1.97160733]
[1761573036500,0.00179563,115010.0,115000.0,1.97960733]
[1761573036741,0.00179563,115010.0,115000.0,2.02441496]
[1761573037206,1e-08,115010.0,115000.0,2.22541496]
[1761573037414,1e-08,115010.0,115000.0,2.23541494]
[1761573037622,1e-08,115010.0,115000.0,2.23441494]
[1761573037830,1e-08,115010.0,115000.0,2.22641494]
[1761573038040,1e-08,115010.0,115000.0,2.23041494]
[1761573038485,1e-08,115010.0,115000.0,2.22741494]
[1761573038697,0.0002,115040.0,115030.0,0.17386768]
[1761573038903,0.0002,115040.0,115030.0,1.15876197]
[1761573039336,0.0008209,115040.0,115030.0,1.15876197]
[1761573040160,0.0008209,115040.0,115030.0,0.47404669]
[1761573040367,0.0008209,115040.0,115030.0,1.19494425]
[1761573040573,0.0008209,115040.0,115030.0,1.57738425]
[1761573040791,0.0008209,115040.0,115030.0,0.26368669]
[1761573041002,0.0008209,115040.0,115030.0,0.96800669]
[1761573041207,0.0008209,115040.0,115030.0,1.19740669]
[1761573041418,0.0008209,115040.0,115030.0,1.20340669]
[1761573041626,0.17467347,115040.0,115030.0,0.08981901]
[1761573041838,0.0008209,115040.0,115030.0,0.76662768]
[1761573042105,0.0008209,115040.0,115030.0,0.77262768]
[1761573042503,0.17467347,115040.0,115030.0,0.59876]
[1761573042716,0.17467347,115040.0,115030.0,0.76662768]
[1761573042926,0.17467347,115040.0,115030.0,0.59276]
[1761573043132,0.17467347,115040.0,115030.0,0.59376]
[1761573043360,0.17467347,115040.0,115030.0,0.001]
[1761573043566,0.98408592,115040.0,115030.0,0.43896]
[1761573043778,1.28920776,115040.0,115030.0,0.59276]
[1761573043992,1.29726185,115040.0,115030.0,0.59276]
[1761573044413,0.52272756,115040.0,115030.0,0.59276]
[1761573044678,0.51467347,115040.0,115030.0,0.59276]
[1761573044883,0.51567347,115040.0,115030.0,0.59276]
[1761573046372,0.17467347,115040.0,115030.0,0.59276]
[1761573046812,0.0018209,115040.0,115030.0,0.76662768]
[1761573047029,0.17567347,115040.0,115030.0,0.76662768]
[1761573047255,0.17467347,115040.0,115030.0,0.59276]
[1761573047672,0.17567347,115040.0,115030.0,0.76662768]
[1761573048089,0.17467347,115040.0,115030.0,0.76662768]
[1761573048577,0.17467347,115040.0,115030.0,0.59276]
[1761573049028,0.17467347,115040.0,115030.0,0.76662768]
[1761573049469,0.0008209,115040.0,115030.0,0.76662768]
[1761573050975,0.0018209,115040.0,115030.0,0.76662768]
[1761573051637,0.0008209,115040.0,115030.0,0.76662768]
[1761573052266,0.0008209,115040.0,115030.0,0.76658768]
[1761573054554,0.00890952,115040.0,115030.0,0.76658768]
[1761573055404,0.00890952,115040.0,115030.0,0.17386768]
[1761573055611,0.00890952,115040.0,115030.0,0.76662768]
[1761573057218,0.00990952,115040.0,115030.0,0.76662768]
[1761573060059,0.00890952,115040.0,115030.0,0.76662768]
[1761573060630,0.03064109,115040.0,115030.0,0.76654768]
[1761573061180,0.20449366,115040.0,115030.0,0.59268]
[1761573061390,0.18276209,115040.0,115030.0,0.76654768]
[1761573061771,0.00890952,115040.0,115030.0,0.76654768]
[1761573062072,0.00990952,115040.0,115030.0,0.76654768]
[1761573062278,0.18376209,115040.0,115030.0,0.76654768]
[1761573062856,0.18376209,115040.0,115030.0,0.59268]
[1761573063057,0.18376209,115040.0,115030.0,0.76654768]
[1761573063258,0.00990952,115040.0,115030.0,0.76654768]
[1761573066441,0.00890952,115040.0,115030.0,0.76654768]
[1761573066789,0.00990952,115040.0,115020.0,0.1738826]
[1761573066980,0.00928862,115040.0,115030.0,0.59256]
[1761573067186,0.00928862,115040.0,115030.0,0.76642768]
[1761573067646,0.00928862,115040.0,115030.0,0.17386768]
[1761573067846,0.00828862,115040.0,115030.0,0.76642768]
[1761573068070,0.03002019,115040.0,115030.0,0.76642768]
[1761573068206,0.00828862,115040.0,115030.0,0.76642768]
[1761573069188,0.18214119,115040.0,115030.0,0.59256]
[1761573069502,0.20387276,115040.0,115030.0,0.76642768]
[1761573069701,0.00828862,115040.0,115030.0,0.76642768]
[1761573070041,0.00928862,115040.0,115030.0,0.76642768]
[1761573071057,0.18314119,115040.0,115030.0,0.76642768]
[1761573071262,0.00928862,115040.0,115030.0,0.76642768]
[1761573073441,0.0012,115040.0,115030.0,1.54096197]
[1761573073880,0.0018209,115040.0,115030.0,1.54096197]
[1761573074337,0.0018209,115040.0,115030.0,0.85624669]
[1761573074543,0.0008209,115040.0,115030.0,0.85624669]
[1761573074935,0.0008209,115040.0,115030.0,0.17386768]
[1761573075210,0.0008209,115040.0,115030.0,0.76634768]
[1761573076306,0.0008209,115040.0,115030.0,0.55622768]
[1761573076521,0.0008209,115040.0,115030.0,0.76630768]
[1761573078104,0.17467347,115040.0,115030.0,0.17386768]
[1761573078316,0.17467347,115040.0,115010.0,0.27295227]
[1761573078317,0.17386768,115030.0,115010.0,0.27295227]
[1761573078527,0.1738828,115020.0,115010.0,0.09036]
[1761573078736,1.31015244,115020.0,115010.0,0.09036]
[1761573078951,1.42126774,115020.0,115010.0,0.52832]
[1761573079174,1.42838186,115020.0,115010.0,0.66444]
[1761573079385,1.49076375,115020.0,115010.0,0.66444]
[1761573079795,0.63050868,115020.0,115010.0,0.66444]
[1761573080007,1.18345882,115020.0,115010.0,0.66444]
[1761573080256,1.18444471,115020.0,115010.0,0.66444]
[1761573080728,0.1748828,115020.0,115010.0,0.66444]
[1761573081661,0.001,115020.0,115010.0,0.92815693]
[1761573082300,0.18274519,115040.0,115020.0,0.1738828]
[1761573082522,0.18274519,115040.0,115030.0,0.15484]
[1761573082745,0.0002,115040.0,115030.0,0.32870768]
[1761573082967,0.17405257,115040.0,115030.0,0.15484]
[1761573083191,0.0002,115040.0,115030.0,0.32870768]
[1761573083863,0.17405257,115040.0,115030.0,0.32870768]
[1761573084082,0.0002,115040.0,115030.0,0.32870768]
[1761573084327,0.0012,115040.0,115030.0,0.32870768]
[1761573084557,0.0018209,115040.0,115030.0,1.31147683]
[1761573085229,0.0018209,115040.0,115030.0,1.43801911]
[1761573085455,0.0008209,115040.0,115030.0,1.43801911]
[1761573086479,0.0008209,115040.0,115030.0,0.85702768]
[1761573086724,0.17467347,115040.0,115030.0,0.85802768]
[1761573086945,0.17467347,115040.0,115030.0,0.68416]
[1761573087165,0.17467347,115040.0,115030.0,0.85702768]
[1761573087381,0.17467347,115040.0,115030.0,0.86302768]
[1761573087855,0.17467347,115040.0,115030.0,0.85702768]
[1761573088710,0.17467347,115040.0,115030.0,0.68316]
[1761573089129,0.17567347,115040.0,115030.0,0.68316]
[1761573089569,0.17467347,115040.0,115030.0,0.85702768]
[1761573089980,0.0008209,115040.0,115030.0,0.85702768]
[1761573090642,0.0008209,115040.0,115030.0,1.49979683]
[1761573090851,0.0008209,115040.0,115030.0,1.53597911]
[1761573091483,0.0008209,115040.0,115030.0,0.98302897]
[1761573091654,0.0018209,115040.0,115030.0,1.49979683]
[1761573092312,0.0008209,115040.0,115030.0,1.49979683]
[1761573092521,0.0008209,115040.0,115030.0,1.49991683]
[1761573092743,0.0008209,115040.0,115030.0,0.94796669]
[1761573092947,0.0008209,115040.0,115030.0,0.95396669]
[1761573093150,0.0008209,115040.0,115030.0,0.95296669]
[1761573093358,0.0008209,115040.0,115030.0,0.94696669]
[1761573093574,0.0008209,115040.0,115030.0,1.49991683]
[1761573094421,0.0008209,115040.0,115030.0,1.83991683]
[1761573094657,0.0008209,115040.0,115030.0,1.87609911]
[1761573095045,0.0008209,115040.0,115030.0,1.87709911]
[1761573095760,0.0008209,115040.0,115030.0,1.87609911]
[1761573095961,0.0008209,115040.0,115030.0,1.87709911]
[1761573096169,0.0008209,115040.0,115030.0,1.32414897]
[1761573096293,0.0008209,115040.0,115030.0,1.87709911]
[1761573096503,0.0008209,115040.0,115030.0,1.88309911]
[1761573096896,0.0008209,115040.0,115030.0,0.69504669]
[1761573097117,0.0008209,115040.0,115030.0,1.29392669]
[1761573097542,0.0008209,115040.0,115030.0,0.60522768]
[1761573097717,0.0008209,115040.0,115030.0,1.19806768]
[1761573097932,0.0008209,115040.0,115030.0,1.20306768]
[1761573098335,0.0008209,115040.0,115030.0,1.20406768]
[1761573098935,0.0008209,115040.0,115030.0,1.20306768]
[1761573099711,0.17467347,115040.0,115030.0,0.85706768]
[1761573100118,0.17467347,115040.0,115030.0,0.6832]
[1761573100322,0.17467347,115040.0,115030.0,0.68316]
[1761573100524,0.0008209,115040.0,115030.0,0.85702768]
[1761573102023,0.17467347,115040.0,115030.0,0.85702768]
[1761573102416,0.0008209,115040.0,115030.0,0.85702768]
[1761573102979,0.17467347,115040.0,115030.0,0.85702768]
[1761573103192,0.81744262,115040.0,115030.0,0.47272]
[1761573103410,1.15744262,115040.0,115030.0,0.6832]
[1761573103611,0.60449248,115040.0,115030.0,0.6832]
[1761573103815,1.15744262,115040.0,115030.0,0.6832]
[1761573105522,0.17567347,115040.0,115030.0,0.6832]
[1761573105693,0.0018209,115040.0,115030.0,0.85706768]
[1761573105995,0.17567347,115040.0,115030.0,0.85706768]
[1761573106315,0.0018209,115040.0,115030.0,0.85706768]
[1761573106742,0.17567347,115040.0,115030.0,0.85706768]
[1761573107162,0.0018209,115040.0,115030.0,0.85706768]
[1761573107363,0.0008209,115040.0,115030.0,0.85706768]
[1761573107569,0.0008209,115040.0,115030.0,1.41001782]
[1761573107780,0.0008209,115040.0,115030.0,1.87601911]
[1761573108604,0.0008209,115040.0,115030.0,1.32306897]
[1761573108808,0.0008209,115040.0,115030.0,1.83983683]
[1761573109015,0.0008209,115040.0,115030.0,1.87601911]
[1761573109442,0.0008209,115040.0,115030.0,1.32406897]
[1761573109658,0.0008209,115040.0,115030.0,1.87701911]
[1761573110067,0.0008209,115040.0,115030.0,1.32406897]
[1761573110475,0.0008209,115040.0,115030.0,1.88801911]
[1761573111119,0.0008209,115040.0,115030.0,1.33506897]
[1761573111331,0.0008209,115040.0,115030.0,1.88801911]
[1761573111528,0.0008209,115040.0,115030.0,0.70504669]
[1761573111745,0.0008209,115040.0,115030.0,1.85079683]
[1761573111882,0.0008209,115040.0,115030.0,1.85179683]
[1761573112649,0.0008209,115040.0,115030.0,1.88697911]
[1761573113338,0.0008209,115040.0,115030.0,1.87597911]
[1761573113695,0.0008209,115040.0,115030.0,1.88397911]
[1761573113901,0.0008209,115040.0,115030.0,2.03027911]
[1761573114147,0.00027,115050.0,115040.0,0.21003485]
[1761573114350,0.00027,115050.0,115040.0,1.40575414]
[1761573114351,0.00041602,115050.0,115040.0,1.40575414]
[1761573114564,0.004,115080.0,115070.0,0.20998952]
[1761573114771,0.00448664,115080.0,115070.0,1.40311867]
[1761573114977,0.00531411,115080.0,115070.0,0.69398625]
[1761573115341,0.00531411,115080.0,115070.0,1.83965639]
[1761573116180,0.00531411,115080.0,115070.0,1.42941867]
[1761573116380,0.00531411,115080.0,115070.0,1.93177867]
[1761573116579,0.0002,115100.0,115090.0,0.51377704]
[1761573116784,0.0002,115100.0,115090.0,1.31146619]
[1761573116785,0.00034593,115100.0,115090.0,1.31146619]
[1761573117225,0.00075952,115100.0,115090.0,0.75851605]
[1761573117427,0.00075952,115100.0,115090.0,1.31146619]
[1761573118304,0.00075952,115100.0,115090.0,1.31846619]
[1761573119057,0.00075952,115100.0,115090.0,1.35464847]
[1761573119265,0.00075952,115100.0,115090.0,1.90759861]
[1761573119480,0.00075952,115100.0,115090.0,1.35464847]
[1761573119685,0.00075952,115100.0,115090.0,1.03117833]
[1761573119846,0.00075952,115100.0,115090.0,1.58412847]
[1761573121149,0.00075952,115100.0,115090.0,1.96331861]
[1761573121812,0.0042,115130.0,115090.0,1.96331861]
[1761573121813,0.0042,115130.0,115120.0,0.20991403]
[1761573122058,0.0042,115130.0,115120.0,1.00780318]
[1761573122981,0.0042,115130.0,115120.0,0.85268318]
[1761573123435,0.0042,115130.0,115120.0,1.00800318]
[1761573123662,0.0042,115130.0,115120.0,0.85268318]
[1761573124134,0.0042,115130.0,115120.0,0.9837809]
[1761573124579,0.0042,115130.0,115120.0,0.9717809]
[1761573124818,0.0042,115130.0,115120.0,1.00796318]
[1761573125102,0.0042,115130.0,115120.0,1.48944318]
[1761573125302,0.0042,115130.0,115120.0,1.54500318]
[1761573125562,0.0042,115130.0,115120.0,1.54400318]
[1761573126594,0.1736742,115190.0,115120.0,1.54400318]
[1761573126595,0.18256099,115200.0,115150.0,0.18233405]
[1761573126875,0.17364125,115180.0,115170.0,0.17364738]
[1761573127124,0.18167996,115180.0,115170.0,0.40288738]
[1761573127525,0.00803871,115180.0,115170.0,0.40288738]
[1761573127734,0.00969178,115180.0,115170.0,0.40288738]
[1761573128370,0.00969178,115180.0,115170.0,0.95583752]
[1761573128548,0.18333303,115180.0,115170.0,0.53732]
[1761573128782,0.18333303,115180.0,115170.0,0.59288]
[1761573128995,0.18333303,115180.0,115170.0,0.76653633]
[1761573129245,0.00969178,115180.0,115170.0,1.31948647]
[1761573129470,0.00969178,115180.0,115170.0,1.40930548]
[1761573130140,0.00969178,115180.0,115170.0,1.41530548]
[1761573130647,0.00969178,115180.0,115170.0,0.007]
[1761573130851,0.29148411,115180.0,115170.0,0.59984]
[1761573131057,0.27315204,115180.0,115170.0,0.59284]
[1761573131476,0.27315204,115180.0,115170.0,0.59984]
[1761573131689,0.82610218,115180.0,115170.0,0.001]
[1761573131900,0.82610218,115180.0,115170.0,0.4386]
[1761573132113,0.82610218,115180.0,115170.0,0.58144]
[1761573132532,0.34938806,115180.0,115170.0,0.58144]
[1761573132749,0.27315204,115180.0,115170.0,0.58144]
[1761573132957,0.82610218,115180.0,115170.0,0.58144]
[1761573133168,1.16610218,115180.0,115170.0,0.58144]
[1761573133355,0.17369889,115150.0,115140.0,0.17370158]
[1761573133650,0.34,115180.0,115150.0,0.18234488]
[1761573133872,0.03079846,115250.0,115240.0,0.17355017]
[1761573134079,0.01115674,115250.0,115240.0,0.14123013]
[1761573134309,0.0012,115300.0,115280.0,0.51348986]
[1761573134530,0.00168746,115300.0,115290.0,0.49744]
[1761573134747,0.00168746,115300.0,115290.0,1.25084634]
[1761573134968,0.00168746,115300.0,115290.0,0.6978962]
[1761573135176,0.00168746,115300.0,115290.0,1.19875558]
[1761573135386,0.00168746,115300.0,115290.0,1.20875557]
[1761573135813,0.00168746,115300.0,115290.0,1.76170571]
[1761573136270,0.00168746,115300.0,115290.0,1.67142571]
[1761573136480,0.00168746,115300.0,115290.0,1.70760799]
[1761573136933,0.00168746,115300.0,115290.0,1.46306571]
[1761573137166,0.00168746,115300.0,115290.0,0.94629785]
[1761573137648,0.00168746,115300.0,115290.0,0.91011557]
[1761573137880,0.18609069,115330.0,115300.0,0.00999999]
[1761573138082,0.20378171,115320.0,115310.0,0.15776]
[1761573138317,0.01281694,115330.0,115310.0,0.21328]
[1761573138507,0.00414617,115330.0,115310.0,0.39672468]
[1761573138749,0.00414617,115330.0,115310.0,0.22327999]
[1761573138955,0.17756163,115330.0,115310.0,0.39671922]
[1761573139167,0.17756175,115330.0,115310.0,0.39671922]
[1761573139373,0.17343045,115320.0,115310.0,0.22327999]
[1761573139613,0.21352913,115330.0,115310.0,0.22327999]
[1761573139819,0.17343045,115320.0,115310.0,0.22327999]
[1761573140029,0.17756288,115330.0,115310.0,0.39672548]
[1761573140445,0.17343045,115320.0,115310.0,0.22327999]
[1761573140628,0.17756288,115330.0,115310.0,0.22327999]
[1761573140906,0.17343045,115320.0,115310.0,0.22327999]
[1761573141115,0.20643306,115320.0,115310.0,0.22327999]
[1761573141326,0.001,115320.0,115310.0,0.39672548]
[1761573141531,0.17756288,115330.0,115310.0,0.39672548]
[1761573141711,0.17756169,115330.0,115310.0,0.39672548]
[1761573141946,0.17856509,115330.0,115310.0,0.39672548]
[1761573142163,0.21463041,115330.0,115310.0,0.39672548]
[1761573142358,0.21463041,115330.0,115310.0,0.22327999]
[1761573142572,0.21463041,115330.0,115310.0,0.39672548]
[1761573142783,0.04121388,115330.0,115310.0,0.39672548]
[1761573142990,0.21463046,115330.0,115310.0,0.39672548]
[1761573143196,0.17343045,115320.0,115310.0,0.22327999]
[1761573143638,0.17443045,115320.0,115310.0,0.39672548]
[1761573143851,0.17443045,115320.0,115310.0,0.21328]
[1761573144256,0.17443045,115320.0,115310.0,0.38672549]
[1761573144461,0.00554043,115320.0,115310.0,0.38672549]
[1761573144668,0.00554043,115320.0,115310.0,0.39672548]
[1761573145122,0.00554043,115320.0,115310.0,0.69512548]
[1761573145739,0.17897088,115320.0,115310.0,0.51168]
[1761573145921,0.17897088,115320.0,115310.0,0.69512548]
[1761573145922,0.00554043,115320.0,115310.0,0.69512548]
[1761573146129,0.70064968,115320.0,115310.0,0.52167999]
[1761573146447,0.67897088,115320.0,115310.0,0.69512548]
[1761573146630,0.50454043,115320.0,115310.0,0.69512548]
[1761573147065,0.67797088,115320.0,115310.0,0.51168]
[1761573147283,1.10778989,115320.0,115310.0,0.35392]
[1761573147522,1.87822454,115320.0,115310.0,0.35392]
[1761573147696,1.87822454,115320.0,115310.0,0.51132]
[1761573147849,1.1976089,115320.0,115310.0,0.51132]
[1761573148052,1.1986089,115320.0,115310.0,0.51132]
[1761573148436,1.78840553,115320.0,115310.0,0.51132]
[1761573148712,1.10778989,115320.0,115310.0,0.51132]
[1761573149368,1.11576848,115320.0,115310.0,0.51132]
[1761573149574,1.10778989,115320.0,115310.0,0.51132]
[1761573149982,1.10878989,115320.0,115310.0,0.51132]
[1761573150238,1.1986089,115320.0,115310.0,0.51132]
[1761573150441,1.8862045,115320.0,115310.0,0.51132]
[1761573150648,1.11576985,115320.0,115310.0,0.51132]
[1761573150846,1.11676985,115320.0,115310.0,0.51132]
[1761573151059,1.10878989,115320.0,115310.0,0.51132]
[1761573151231,0.85352533,115320.0,115310.0,0.51132]
[1761573151420,0.50554043,115320.0,115310.0,0.69476548]
[1761573152076,0.50554043,115320.0,115310.0,0.52131999]
[1761573152548,0.50554043,115320.0,115310.0,0.69476548]
[1761573152959,0.50454043,115320.0,115310.0,0.69476548]
[1761573153806,0.50454043,115320.0,115310.0,0.27364548]
[1761573154014,0.50454043,115320.0,115310.0,0.86800548]
[1761573155271,0.50454043,115320.0,115310.0,1.67462241]
[1761573155474,0.50454043,115320.0,115310.0,1.01238785]
[1761573155680,0.50454043,115320.0,115310.0,1.01238883]
[1761573155888,0.50454043,115320.0,115310.0,1.35238883]
[1761573157298,0.41403091,115320.0,115310.0,2.05593934]
[1761573157699,0.41403091,115320.0,115310.0,1.3753237]
[1761573158067,0.41403091,115320.0,115310.0,2.05593934]
[1761573158270,0.41403091,115320.0,115310.0,1.35238883]
[1761573158444,0.41403091,115320.0,115310.0,1.3753237]
[1761573159331,0.41403091,115320.0,115310.0,1.40592264]
[1761573159875,0.41403091,115320.0,115310.0,0.14151692]
[1761573160076,0.42205137,115320.0,115310.0,0.55554205]
[1761573160278,0.42205137,115320.0,115310.0,0.88618754]
[1761573160704,0.42205137,115320.0,115310.0,1.99662219]
[1761573161058,0.41403091,115320.0,115310.0,2.06340341]
[1761573161413,0.42207042,115320.0,115310.0,1.39808724]
[1761573161615,0.41403091,115320.0,115310.0,2.07870288]
[1761573162221,0.4220888,115320.0,115310.0,2.07870288]
[1761573162412,0.37527582,115320.0,115310.0,2.09507353]
[1761573162599,0.37527582,115320.0,115310.0,1.41445789]
[1761573163010,0.37527582,115320.0,115310.0,2.03580447]
[1761573163212,0.37527582,115320.0,115310.0,1.35518883]
[1761573163414,0.30505419,115320.0,115310.0,2.11366145]
[1761573163599,0.30505419,115320.0,115310.0,2.03580447]
[1761573164058,0.30505419,115320.0,115310.0,2.09779871]
[1761573164261,0.30505419,115320.0,115310.0,2.03580447]
[1761573164461,0.30505419,115320.0,115310.0,2.05195505]
[1761573164860,0.30505419,115320.0,115310.0,1.37133941]
[1761573165099,0.30505419,115320.0,115310.0,1.43336299]
[1761573165683,0.30505419,115320.0,115310.0,1.43348299]
[1761573166887,0.30505419,115320.0,115310.0,2.11409863]
[1761573167292,0.30505419,115320.0,115310.0,2.05207505]
[1761573167503,0.30505419,115320.0,115310.0,1.37145941]
[1761573167913,0.30505419,115320.0,115310.0,1.43347067]
[1761573168124,0.30505419,115320.0,115310.0,1.39708839]
[1761573169340,0.30505419,115320.0,115310.0,1.34160839]
[1761573169528,0.30505419,115320.0,115310.0,1.39708839]
[1761573169673,0.30505419,115320.0,115310.0,1.43327067]
[1761573169874,0.30505419,115320.0,115310.0,2.01569277]
[1761573170077,0.30505419,115320.0,115310.0,2.05187505]
[1761573170300,0.30505419,115320.0,115310.0,1.37125941]
[1761573170500,0.30505419,115320.0,115310.0,2.05187505]
[1761573171109,0.18803509,115320.0,115310.0,2.03914486]
[1761573171366,0.1820967,115370.0,115310.0,2.03914486]
[1761573171367,7e-05,115370.0,115360.0,0.17337031]
[1761573171537,0.00021576,115370.0,115360.0,0.627824]
[1761573171738,0.00021576,115370.0,115360.0,0.55524495]
[1761573172064,0.00021576,115370.0,115360.0,1.3256796]
[1761573172289,0.00021576,115370.0,115360.0,1.70186188]
[1761573172473,0.00021576,115370.0,115360.0,1.72508916]
[1761573172850,0.00021576,115370.0,115360.0,1.07564323]
[1761573173065,0.00021576,115370.0,115360.0,1.72528916]
[1761573173592,0.00021576,115370.0,115360.0,1.04467352]
[1761573173743,0.00021576,115370.0,115360.0,1.72528916]
[1761573173975,0.00021576,115370.0,115360.0,1.04467352]
[1761573174139,0.00021576,115370.0,115360.0,1.72628916]
[1761573175162,0.00021576,115370.0,115360.0,2.02444916]
[1761573175371,0.00021576,115370.0,115360.0,2.00122188]
[1761573175572,0.00021576,115370.0,115360.0,0.89822396]
[1761573175709,0.17357105,115370.0,115360.0,0.68524]
[1761573175911,0.25186756,115370.0,115360.0,0.68524]
[1761573176111,0.17357105,115370.0,115360.0,0.68524]
[1761573176541,0.17357105,115370.0,115360.0,0.6852]
[1761573176739,0.9440057,115370.0,115360.0,0.09012]
[1761573176906,0.94503619,115370.0,115360.0,0.6842]
[1761573177110,1.0358552,115370.0,115360.0,0.6842]
[1761573177333,1.0358552,115370.0,115360.0,0.52688]
[1761573177537,1.3748552,115370.0,115360.0,0.43676]
[1761573177745,1.3748552,115370.0,115360.0,0.59412]
[1761573177746,1.38485519,115370.0,115360.0,0.59412]
[1761573178490,0.17343045,115320.0,115310.0,0.18344514]
[1761573178693,0.17341541,115330.0,115310.0,0.62020488]
[1761573179112,0.19510925,115320.0,115310.0,0.44675999]
[1761573179339,0.17341541,115330.0,115310.0,0.62020548]
[1761573179547,0.17341541,115330.0,115320.0,0.34075044]
[1761573179954,0.18207449,115360.0,115330.0,0.17341541]
[1761573180171,0.17337041,115360.0,115350.0,0.05544]
[1761573180588,0.17337041,115360.0,115350.0,0.21284]
[1761573181601,0.26318942,115360.0,115350.0,0.21284]
[1761573181820,0.17340038,115340.0,115320.0,0.37322727]
[1761573182019,0.17341541,115330.0,115320.0,0.52343044]
[1761573182132,0.17341541,115330.0,115320.0,0.62023044]
[1761573182339,0.17343045,115320.0,115310.0,0.00999999]
[1761573182612,0.30658677,115330.0,115310.0,0.59446617]
[1761573182788,0.30658677,115330.0,115310.0,0.76791166]
[1761573182976,0.27190519,115330.0,115310.0,0.76791166]
[1761573183338,0.27999936,115330.0,115310.0,0.76791166]
[1761573183463,0.09791318,115330.0,115320.0,0.17343045]
[1761573183667,0.00809417,115330.0,115320.0,0.18343044]
[1761573183924,0.00809417,115330.0,115320.0,0.27324945]
[1761573184150,0.00830034,115330.0,115320.0,1.34806208]
[1761573184530,0.00830034,115330.0,115320.0,1.3248348]
[1761573184940,0.00830034,115330.0,115320.0,0.92237916]
[1761573185116,0.18171575,115330.0,115320.0,0.33137336]
[1761573185323,0.18171575,115330.0,115320.0,0.09012]
[1761573185521,0.18171575,115330.0,115320.0,0.6846]
[1761573186034,0.18171575,115330.0,115320.0,0.6856]
[1761573186382,0.18171575,115330.0,115320.0,0.6846]
[1761573186522,0.27153476,115330.0,115320.0,0.09012]
[1761573186731,0.3070464,115330.0,115320.0,0.68556]
[1761573188365,0.00830034,115330.0,115320.0,0.86799044]
[1761573188800,0.00830034,115330.0,115320.0,0.89120381]
[1761573189926,0.00830034,115330.0,115320.0,0.71777336]
[1761573190134,0.00830034,115330.0,115320.0,0.86799044]
[1761573190568,0.00830034,115330.0,115320.0,0.89120381]
[1761573190946,0.00830034,115330.0,115320.0,1.60278916]
[1761573191176,0.00830034,115330.0,115320.0,0.89120381]
[1761573191774,0.00830034,115330.0,115320.0,0.89220381]
[1761573192170,0.00830034,115330.0,115320.0,0.89120381]
[1761573192308,0.00020617,115330.0,115320.0,0.89120381]
[1761573193128,0.00020617,115330.0,115320.0,0.93116645]
[1761573193311,0.00020617,115330.0,115320.0,0.89120381]
[1761573193719,0.00020617,115330.0,115320.0,0.29676381]
[1761573193922,0.00020617,115330.0,115320.0,0.89108381]
[1761573195309,0.02188309,115330.0,115320.0,0.29676381]
[1761573195508,0.00020617,115330.0,115320.0,0.86779044]
[1761573195717,0.00020617,115330.0,115320.0,0.52696]
[1761573195718,0.1952985,115330.0,115320.0,0.52696]
[1761573195892,0.21049161,115330.0,115320.0,0.68432]
[1761573196100,0.0370762,115330.0,115320.0,0.85775045]
[1761573196412,0.1952985,115330.0,115320.0,0.85775045]
[1761573196841,0.17362158,115330.0,115320.0,0.85775045]
[1761573197390,0.00020617,115330.0,115320.0,0.85775045]
[1761573197810,0.17362158,115330.0,115320.0,0.85775045]
[1761573198265,0.17462158,115330.0,115320.0,0.85775045]
[1761573198505,0.20942392,115330.0,115320.0,0.85775045]
[1761573198982,0.20942392,115330.0,115320.0,0.29816]
[1761573199215,0.97985857,115330.0,115320.0,0.09012]
[1761573199433,0.97985857,115330.0,115320.0,0.6844]
[1761573199659,0.98795232,115330.0,115320.0,0.6844]
[1761573200977,0.30733668,115330.0,115320.0,0.09012]
[1761573201183,0.98795232,115330.0,115320.0,0.68444]
[1761573201872,0.27253434,115330.0,115320.0,0.68444]
[1761573202758,0.27153434,115330.0,115320.0,0.68444]
[1761573203225,0.27253434,115330.0,115320.0,0.68444]
[1761573203904,0.82248262,115330.0,115320.0,0.68444]
[1761573204122,0.27253434,115330.0,115320.0,0.68444]
[1761573204377,0.86707623,115330.0,115320.0,0.68432]
[1761573204572,0.86607623,115330.0,115320.0,0.68432]
[1761573204994,0.86707623,115330.0,115320.0,0.68432]
[1761573205202,0.86706974,115330.0,115320.0,0.68432]
[1761573205671,0.27252785,115330.0,115320.0,0.68432]
[1761573206112,0.82247613,115330.0,115320.0,0.68432]
[1761573208091,0.27252785,115330.0,115320.0,0.68432]
[1761573209001,0.82247613,115330.0,115320.0,0.68432]
[1761573209563,0.27252785,115330.0,115320.0,0.68432]
[1761573209997,0.26444059,115330.0,115320.0,0.68432]
[1761573212928,0.81438887,115330.0,115320.0,0.52708]
[1761573213155,0.81438887,115330.0,115320.0,0.68416]
[1761573214136,0.82248503,115330.0,115320.0,0.68416]
[1761573215888,0.27253675,115330.0,115320.0,0.68416]
[1761573216093,0.82248503,115330.0,115320.0,0.68416]
[1761573216311,0.91230404,115330.0,115320.0,0.68416]
[1761573216517,0.82248503,115330.0,115320.0,0.68416]
[1761573216741,0.27253675,115330.0,115320.0,0.68416]
[1761573216973,0.26444059,115330.0,115320.0,0.68416]
[1761573218341,0.81438887,115330.0,115320.0,0.09012]
[1761573218560,0.2725378,115330.0,115320.0,0.68404]
[1761573218788,0.86708004,115330.0,115320.0,0.68404]
[1761573219229,0.86708004,115330.0,115320.0,0.45512]
[1761573219453,0.86708004,115330.0,115320.0,0.684]
[1761573220379,0.31713176,115330.0,115320.0,0.684]
[1761573220602,0.82248608,115330.0,115320.0,0.684]